[Event "*** Titled Tuesday Blitz"]
[Site "Chess.com"]
[Date "2020.03.03"]
[Round "1"]
[White "FedaMaster"]
[Black "Azeryahu"]
[Result "0-1"]
[WhiteElo "2433"]
[BlackElo "2820"]
[TimeControl "180+1"]
[EndTime "13:07:16 PST"]
[Termination "Azeryahu won by resignation"]

1. e4 {[%clk 0:03:00.6]} 1... e5 {[%clk 0:02:59.4]} 2. Nf3 {[%clk 0:02:56]} 2...
Nc6 {[%clk 0:02:59.4]} 3. Bb5 {[%clk 0:02:56.4]} 3... Nf6 {[%clk 0:02:59.5]} 4.
O-O {[%clk 0:02:53.9]} 4... Nxe4 {[%clk 0:02:59.4]} 5. Re1 {[%clk 0:02:46.1]}
5... Nd6 {[%clk 0:02:59.5]} 6. Nxe5 {[%clk 0:02:46.2]} 6... Be7 {[%clk 0:03:00]}
7. Bf1 {[%clk 0:02:45.6]} 7... Nf5 {[%clk 0:03:00.6]} 8. Nxc6 {[%clk 0:02:27.9]}
8... dxc6 {[%clk 0:03:01.5]} 9. Nc3 {[%clk 0:02:17.9]} 9... O-O {[%clk
0:03:00.2]} 10. d3 {[%clk 0:01:57.2]} 10... c5 {[%clk 0:02:53.2]} 11. g3 {[%clk
0:01:34.5]} 11... Nd4 {[%clk 0:02:44.5]} 12. Bg2 {[%clk 0:01:34.3]} 12... c6
{[%clk 0:02:39.3]} 13. Be3 {[%clk 0:01:24.7]} 13... Re8 {[%clk 0:02:39.1]} 14.
h3 {[%clk 0:01:19.1]} 14... Be6 {[%clk 0:02:33.4]} 15. Ne2 {[%clk 0:01:16.6]}
15... Bf6 {[%clk 0:02:19.5]} 16. Nxd4 {[%clk 0:01:14.9]} 16... Bxd4 {[%clk
0:02:19.5]} 17. Bxd4 {[%clk 0:01:11.3]} 17... Qxd4 {[%clk 0:02:19.5]} 18. b3
{[%clk 0:01:06]} 18... Qc3 {[%clk 0:02:17]} 19. Re2 {[%clk 0:00:45.3]} 19... a5
{[%clk 0:01:48.5]} 20. Qe1 {[%clk 0:00:38.6]} 20... Qxe1+ {[%clk 0:01:48.3]} 21.
Raxe1 {[%clk 0:00:35.9]} 21... a4 {[%clk 0:01:48.6]} 22. f4 {[%clk 0:00:33.7]}
22... Red8 {[%clk 0:01:48.3]} 23. Re5 {[%clk 0:00:30.4]} 23... Ra5 {[%clk
0:01:33.5]} 24. f5 {[%clk 0:00:29.1]} 24... Bd7 {[%clk 0:01:33]} 25. b4 {[%clk
0:00:22.4]} 25... Rb5 {[%clk 0:01:32.4]} 26. bxc5 {[%clk 0:00:20.5]} 26... Rb2
{[%clk 0:01:30.7]} 27. R5e4 {[%clk 0:00:19]} 27... Rxa2 {[%clk 0:01:25.8]} 28.
Rd4 {[%clk 0:00:17.9]} 28... Kf8 {[%clk 0:01:25.8]} 29. f6 {[%clk 0:00:12]}
29... gxf6 {[%clk 0:01:24.9]} 30. Bf3 {[%clk 0:00:12.2]} 30... Re8 {[%clk
0:01:25]} 31. Rb1 {[%clk 0:00:09.4]} 31... Bc8 {[%clk 0:01:20.9]} 32. Rc4 {[%clk
0:00:09.1]} 32... Bxh3 {[%clk 0:00:53.1]} 33. Kf2 {[%clk 0:00:06.2]} 33... Bc8
{[%clk 0:00:49.9]} 34. Rh1 {[%clk 0:00:04.6]} 34... Be6 {[%clk 0:00:46.3]} 35.
Rc3 {[%clk 0:00:04.4]} 35... Bb3 {[%clk 0:00:46.8]} 36. Rc1 {[%clk 0:00:03.6]}
36... Re5 {[%clk 0:00:43.3]} 37. Bd1 {[%clk 0:00:03.1]} 37... Bd5 {[%clk
0:00:40.4]} 38. Rb1 {[%clk 0:00:03]} 38... Re7 {[%clk 0:00:38]} 39. Be2 {[%clk
0:00:01.6]} 39... Kg7 {[%clk 0:00:37.6]} 40. Bd1 {[%clk 0:00:02.2]} 40... f5
{[%clk 0:00:37.7]} 41. Be2 {[%clk 0:00:02.4]} 41... Kf6 {[%clk 0:00:38.1]} 42.
Bd1 {[%clk 0:00:03.2]} 42... Ke5 {[%clk 0:00:38.3]} 43. Be2 {[%clk 0:00:04.1]}
43... Kd4 {[%clk 0:00:38.5]} 44. Rc4+ {[%clk 0:00:03.5]} 44... Bxc4 {[%clk
0:00:38.5]} 45. dxc4 {[%clk 0:00:04]} 45... Rxc2 {[%clk 0:00:38.1]} 46. Rd1+
{[%clk 0:00:04.9]} 46... Kxc5 {[%clk 0:00:38.3]} 47. Kf3 {[%clk 0:00:04.7]} 0-1

[Event "*** Titled Tuesday Blitz"]
[Site "Chess.com"]
[Date "2020.03.03"]
[Round "1"]
[White "Gentlejimmy7"]
[Black "ChristianAlm"]
[Result "1-0"]
[WhiteElo "2688"]
[BlackElo "2327"]
[TimeControl "180+1"]
[EndTime "13:07:17 PST"]
[Termination "Gentlejimmy7 won by resignation"]

1. d4 {[%clk 0:03:00.9]} 1... d5 {[%clk 0:02:58.1]} 2. Nf3 {[%clk 0:03:01.2]}
2... Nf6 {[%clk 0:02:57.7]} 3. c4 {[%clk 0:03:01.6]} 3... c6 {[%clk 0:02:57.3]}
4. Nbd2 {[%clk 0:03:00.4]} 4... e6 {[%clk 0:02:52.6]} 5. g3 {[%clk 0:02:55.6]}
5... Nbd7 {[%clk 0:02:51.7]} 6. Bg2 {[%clk 0:02:56]} 6... Bd6 {[%clk 0:02:51]}
7. O-O {[%clk 0:02:56.4]} 7... a6 {[%clk 0:02:43.2]} 8. b3 {[%clk 0:02:56.2]}
8... O-O {[%clk 0:02:41.9]} 9. Bb2 {[%clk 0:02:56.5]} 9... Re8 {[%clk
0:02:40.8]} 10. Ne5 {[%clk 0:02:55.2]} 10... c5 {[%clk 0:02:31.8]} 11. Nxd7
{[%clk 0:02:54.1]} 11... Bxd7 {[%clk 0:02:30.4]} 12. cxd5 {[%clk 0:02:54.3]}
12... exd5 {[%clk 0:02:26.6]} 13. dxc5 {[%clk 0:02:54.6]} 13... Bxc5 {[%clk
0:02:26.4]} 14. Rc1 {[%clk 0:02:55]} 14... Rc8 {[%clk 0:02:25.6]} 15. Nf3 {[%clk
0:02:52.1]} 15... Bg4 {[%clk 0:02:15.9]} 16. Bxf6 {[%clk 0:02:45.8]} 16... Qxf6
{[%clk 0:02:13.6]} 17. Qxd5 {[%clk 0:02:46.3]} 17... Qb6 {[%clk 0:02:03.4]} 18.
e3 {[%clk 0:02:35.1]} 18... Be6 {[%clk 0:02:00.1]} 19. Qd2 {[%clk 0:02:27.7]}
19... Rcd8 {[%clk 0:01:47.1]} 20. Qc2 {[%clk 0:02:25]} 20... Ba3 {[%clk
0:01:44.8]} 21. Ng5 {[%clk 0:02:17.3]} 21... g6 {[%clk 0:01:38.9]} 22. Qc7
{[%clk 0:02:10.3]} 22... Qxc7 {[%clk 0:01:29.9]} 23. Rxc7 {[%clk 0:02:11.2]}
23... Rd2 {[%clk 0:01:29.1]} 24. Ne4 {[%clk 0:02:02.3]} 24... Rxa2 {[%clk
0:01:26.5]} 25. Nf6+ {[%clk 0:02:02.1]} 25... Kf8 {[%clk 0:01:26.1]} 26. Nxe8
{[%clk 0:02:00.9]} 26... Kxe8 {[%clk 0:01:25.8]} 27. Bxb7 {[%clk 0:01:53.4]}
27... a5 {[%clk 0:01:24.6]} 28. Rd1 {[%clk 0:01:50]} 28... Bb4 {[%clk
0:01:17.8]} 29. Bd5 {[%clk 0:01:44]} 29... Bg4 {[%clk 0:01:11.1]} 30. Bxf7+
{[%clk 0:01:31]} 30... Kf8 {[%clk 0:01:10.3]} 31. Rd8+ {[%clk 0:01:31.1]} 31...
Kg7 {[%clk 0:01:09.5]} 32. Be6+ {[%clk 0:01:31.6]} 32... Kh6 {[%clk 0:01:05.2]}
33. Bxg4 {[%clk 0:01:31.5]} 33... a4 {[%clk 0:01:05.1]} 34. bxa4 {[%clk
0:01:28.7]} 34... Ba5 {[%clk 0:01:04.4]} 35. Rdd7 {[%clk 0:01:21.7]} 35... Bxc7
{[%clk 0:01:03.5]} 36. Rxc7 {[%clk 0:01:22.6]} 36... Rxa4 {[%clk 0:01:03.7]} 37.
Be6 {[%clk 0:01:23.2]} 37... Kg5 {[%clk 0:00:57.2]} 38. Rxh7 {[%clk 0:01:21.7]}
38... Kf6 {[%clk 0:00:56]} 39. Bf7 {[%clk 0:01:19.3]} 39... Ra7 {[%clk
0:00:54.9]} 40. Bxg6 {[%clk 0:01:19.1]} 40... Ra1+ {[%clk 0:00:55]} 41. Kg2
{[%clk 0:01:18.8]} 41... Kxg6 {[%clk 0:00:55.9]} 42. Rb7 {[%clk 0:01:18.1]}
42... Ra6 {[%clk 0:00:54.9]} 43. Rb5 {[%clk 0:01:17.4]} 43... Kf6 {[%clk
0:00:55.8]} 44. h4 {[%clk 0:01:17.2]} 44... Kg6 {[%clk 0:00:56.7]} 45. g4 {[%clk
0:01:17.5]} 45... Kf6 {[%clk 0:00:56.4]} 46. h5 {[%clk 0:01:17.8]} 46... Rc6
{[%clk 0:00:54.2]} 47. Kg3 {[%clk 0:01:18]} 47... Rc7 {[%clk 0:00:53]} 48. e4
{[%clk 0:01:17.4]} 48... Kg7 {[%clk 0:00:53.2]} 49. g5 {[%clk 0:01:17.1]} 49...
Kh7 {[%clk 0:00:53.2]} 50. f4 {[%clk 0:01:16.3]} 50... Kg7 {[%clk 0:00:52.8]}
51. Kg4 {[%clk 0:01:16.5]} 51... Ra7 {[%clk 0:00:53.7]} 52. h6+ {[%clk
0:01:16.6]} 52... Kh7 {[%clk 0:00:53.6]} 53. e5 {[%clk 0:01:17]} 53... Ra8
{[%clk 0:00:53.1]} 54. Rb7+ {[%clk 0:01:16.6]} 54... Kh8 {[%clk 0:00:51.4]} 55.
g6 {[%clk 0:01:16.9]} 55... Rc8 {[%clk 0:00:50.6]} 56. f5 {[%clk 0:01:16.1]}
56... Ra8 {[%clk 0:00:48.5]} 57. Kg5 {[%clk 0:01:16.1]} 57... Rc8 {[%clk
0:00:46.7]} 58. Rd7 {[%clk 0:01:16.5]} 58... Ra8 {[%clk 0:00:45.1]} 59. e6
{[%clk 0:01:16.6]} 59... Rc8 {[%clk 0:00:44.4]} 60. e7 {[%clk 0:01:15.9]} 60...
Rg8 {[%clk 0:00:38.2]} 61. Rd8 {[%clk 0:01:14.6]} 1-0

[Event "*** Titled Tuesday Blitz"]
[Site "Chess.com"]
[Date "2020.03.03"]
[Round "1"]
[White "Jospem"]
[Black "Gahan-MG"]
[Result "1-0"]
[WhiteElo "2925"]
[BlackElo "2493"]
[TimeControl "180+1"]
[EndTime "13:07:18 PST"]
[Termination "Jospem won by resignation"]

1. c4 {[%clk 0:03:00.9]} 1... Nf6 {[%clk 0:02:58.8]} 2. g3 {[%clk 0:03:01.1]}
2... g6 {[%clk 0:02:57.7]} 3. Bg2 {[%clk 0:03:01.6]} 3... d5 {[%clk 0:02:57.7]}
4. cxd5 {[%clk 0:03:01.8]} 4... Nxd5 {[%clk 0:02:58.6]} 5. Nc3 {[%clk
0:03:02.6]} 5... Nb6 {[%clk 0:02:58.5]} 6. d3 {[%clk 0:03:03]} 6... Bg7 {[%clk
0:02:58.7]} 7. Be3 {[%clk 0:03:03.6]} 7... Nc6 {[%clk 0:02:57.3]} 8. h4 {[%clk
0:03:03.6]} 8... h5 {[%clk 0:02:56.8]} 9. Nf3 {[%clk 0:03:03.6]} 9... O-O {[%clk
0:02:56.5]} 10. Qd2 {[%clk 0:03:01.1]} 10... Re8 {[%clk 0:02:53.4]} 11. O-O
{[%clk 0:02:54.4]} 11... Bg4 {[%clk 0:02:52.8]} 12. Rac1 {[%clk 0:02:51.7]}
12... e5 {[%clk 0:02:45.9]} 13. Ne4 {[%clk 0:02:45.2]} 13... Nd5 {[%clk
0:02:39.6]} 14. Bc5 {[%clk 0:02:30.3]} 14... b6 {[%clk 0:02:34.7]} 15. Ba3
{[%clk 0:02:30.2]} 15... Bxf3 {[%clk 0:02:30.3]} 16. Bxf3 {[%clk 0:02:30.1]}
16... Nd4 {[%clk 0:02:30.7]} 17. Bg2 {[%clk 0:02:29.5]} 17... c5 {[%clk
0:02:29.2]} 18. Nc3 {[%clk 0:02:28]} 18... Nxc3 {[%clk 0:02:20.8]} 19. bxc3
{[%clk 0:02:28.9]} 19... Nb5 {[%clk 0:02:20.7]} 20. Bxa8 {[%clk 0:02:27.5]}
20... Qxa8 {[%clk 0:02:18.6]} 21. Bb2 {[%clk 0:02:27.4]} 21... Rd8 {[%clk
0:02:03.2]} 22. c4 {[%clk 0:02:24.5]} 22... Nd4 {[%clk 0:02:02.4]} 23. Bxd4
{[%clk 0:02:23.8]} 23... Rxd4 {[%clk 0:02:02]} 24. e3 {[%clk 0:02:20.5]} 24...
Rd7 {[%clk 0:02:00.1]} 25. Qe2 {[%clk 0:02:20.4]} 25... Qd8 {[%clk 0:01:59.1]}
26. Rcd1 {[%clk 0:02:18.5]} 26... Bf6 {[%clk 0:01:56.3]} 27. a4 {[%clk
0:02:12.9]} 27... Kg7 {[%clk 0:01:55.4]} 28. Kg2 {[%clk 0:02:10.3]} 28... Rd6
{[%clk 0:01:52.4]} 29. Rh1 {[%clk 0:02:03.2]} 29... Qd7 {[%clk 0:01:51.4]} 30.
Qc2 {[%clk 0:01:59]} 30... Qc6+ {[%clk 0:01:50.4]} 31. e4 {[%clk 0:01:59.5]}
31... Qd7 {[%clk 0:01:47.3]} 32. Qc3 {[%clk 0:01:57.2]} 32... Rd4 {[%clk
0:01:47]} 33. a5 {[%clk 0:01:56.3]} 33... bxa5 {[%clk 0:01:41.8]} 34. Rd2 {[%clk
0:01:43.6]} 34... a4 {[%clk 0:01:38.9]} 35. f3 {[%clk 0:01:35.9]} 35... Bd8
{[%clk 0:01:35.4]} 36. Ra1 {[%clk 0:01:34.9]} 36... Bb6 {[%clk 0:01:33.1]} 37.
Qc2 {[%clk 0:01:34.8]} 37... Ba5 {[%clk 0:01:27.8]} 38. Rdd1 {[%clk 0:01:35.2]}
38... Bb4 {[%clk 0:01:26.1]} 39. Qxa4 {[%clk 0:01:35.1]} 39... Qxa4 {[%clk
0:01:20.8]} 40. Rxa4 {[%clk 0:01:33.6]} 40... a5 {[%clk 0:01:21.4]} 41. Kf2
{[%clk 0:01:33.9]} 41... f5 {[%clk 0:01:20.3]} 42. Ke2 {[%clk 0:01:34.1]} 42...
Kf6 {[%clk 0:01:20.3]} 43. Ke3 {[%clk 0:01:33.2]} 43... Rd6 {[%clk 0:01:10.3]}
44. Rc1 {[%clk 0:01:29.4]} 44... f4+ {[%clk 0:01:01]} 45. Ke2 {[%clk 0:01:13.2]}
45... g5 {[%clk 0:00:53.8]} 46. gxf4 {[%clk 0:01:04.8]} 46... exf4 {[%clk
0:00:35.9]} 47. hxg5+ {[%clk 0:01:04.8]} 47... Kxg5 {[%clk 0:00:36.8]} 48. Rg1+
{[%clk 0:01:05.3]} 48... Kh4 {[%clk 0:00:23.8]} 49. Ra2 {[%clk 0:01:01]} 49...
Bc3 {[%clk 0:00:21.3]} 50. Kf1 {[%clk 0:00:59.2]} 50... Kh3 {[%clk 0:00:16.7]}
51. Rag2 {[%clk 0:00:58.7]} 1-0

[Event "*** Titled Tuesday Blitz"]
[Site "Chess.com"]
[Date "2020.03.03"]
[Round "1"]
[White "ZWISCHENZUGGED"]
[Black "DonBroca"]
[Result "1-0"]
[WhiteElo "2561"]
[BlackElo "2048"]
[TimeControl "180+1"]
[EndTime "13:07:18 PST"]
[Termination "ZWISCHENZUGGED won on time"]

1. d4 {[%clk 0:03:00.3]} 1... Nf6 {[%clk 0:02:59]} 2. c4 {[%clk 0:02:59.3]} 2...
g6 {[%clk 0:02:57.9]} 3. g3 {[%clk 0:02:59.7]} 3... Bg7 {[%clk 0:02:55.8]} 4.
Bg2 {[%clk 0:03:00.2]} 4... O-O {[%clk 0:02:54.3]} 5. Nc3 {[%clk 0:03:00.3]}
5... d6 {[%clk 0:02:53.2]} 6. Nf3 {[%clk 0:03:00.3]} 6... Nc6 {[%clk 0:02:52.9]}
7. O-O {[%clk 0:02:59.4]} 7... a6 {[%clk 0:02:53.2]} 8. Bf4 {[%clk 0:02:58.2]}
8... Bf5 {[%clk 0:02:45.8]} 9. Rc1 {[%clk 0:02:51.3]} 9... Ne4 {[%clk
0:02:44.9]} 10. Nxe4 {[%clk 0:02:51.1]} 10... Bxe4 {[%clk 0:02:45.8]} 11. d5
{[%clk 0:02:48]} 11... Nb8 {[%clk 0:02:34.9]} 12. Qd2 {[%clk 0:02:47.5]} 12...
a5 {[%clk 0:02:24.7]} 13. Bh6 {[%clk 0:02:43.9]} 13... Nd7 {[%clk 0:02:13.3]}
14. Bxg7 {[%clk 0:02:42.1]} 14... Kxg7 {[%clk 0:02:14]} 15. Bh3 {[%clk
0:02:23.1]} 15... Nf6 {[%clk 0:02:04.2]} 16. Ng5 {[%clk 0:02:14.6]} 16... h6
{[%clk 0:01:52.8]} 17. Nxe4 {[%clk 0:02:11.9]} 17... Nxe4 {[%clk 0:01:53.7]} 18.
Qd4+ {[%clk 0:02:11]} 18... Nf6 {[%clk 0:01:49.3]} 19. e4 {[%clk 0:02:11.2]}
19... Kh7 {[%clk 0:01:34.2]} 20. f4 {[%clk 0:02:06.9]} 20... Nd7 {[%clk
0:01:15.1]} 21. e5 {[%clk 0:02:00.6]} 21... f6 {[%clk 0:00:55]} 22. Bxd7 {[%clk
0:01:48.5]} 22... Qxd7 {[%clk 0:00:54.4]} 23. e6 {[%clk 0:01:48]} 23... Qa4
{[%clk 0:00:52.3]} 24. f5 {[%clk 0:01:28.2]} 24... g5 {[%clk 0:00:50]} 25. a3
{[%clk 0:01:28.1]} 25... Qb3 {[%clk 0:00:41.2]} 26. Rfd1 {[%clk 0:01:15]} 26...
Ra6 {[%clk 0:00:40.4]} 27. Rd3 {[%clk 0:01:09.9]} 27... Qb6 {[%clk 0:00:39.4]}
28. c5 {[%clk 0:01:07.4]} 28... dxc5 {[%clk 0:00:37]} 29. Rxc5 {[%clk
0:01:02.3]} 29... Rd8 {[%clk 0:00:31.5]} 30. Kg2 {[%clk 0:00:35.9]} 30... c6
{[%clk 0:00:25.9]} 31. Qc3 {[%clk 0:00:34.1]} 31... cxd5 {[%clk 0:00:14.9]} 32.
Rdxd5 {[%clk 0:00:33.5]} 32... Rxd5 {[%clk 0:00:14.6]} 33. Rxd5 {[%clk
0:00:34.4]} 33... Qc6 {[%clk 0:00:03.9]} 34. Qxc6 {[%clk 0:00:31.3]} 34... Rxc6
{[%clk 0:00:04.8]} 35. Rd7 {[%clk 0:00:31.8]} 35... Rc2+ {[%clk 0:00:04.8]} 36.
Kg1 {[%clk 0:00:20.8]} 36... Rxb2 {[%clk 0:00:02.9]} 37. Rxe7+ {[%clk
0:00:20.6]} 37... Kg8 {[%clk 0:00:03.5]} 38. Rf7 {[%clk 0:00:18.5]} 38... b5
{[%clk 0:00:01.2]} 39. Rxf6 {[%clk 0:00:14.1]} 1-0

[Event "*** Titled Tuesday Blitz"]
[Site "Chess.com"]
[Date "2020.03.03"]
[Round "1"]
[White "davserr65"]
[Black "kingofthenil"]
[Result "0-1"]
[WhiteElo "2064"]
[BlackElo "2562"]
[TimeControl "180+1"]
[EndTime "13:07:20 PST"]
[Termination "kingofthenil won on time"]

1. Nf3 {[%clk 0:02:59.7]} 1... f5 {[%clk 0:02:58.7]} 2. e4 {[%clk 0:02:59.1]}
2... fxe4 {[%clk 0:02:57.9]} 3. Ng5 {[%clk 0:02:58.9]} 3... Nf6 {[%clk
0:02:55.6]} 4. d3 {[%clk 0:02:59.2]} 4... e5 {[%clk 0:02:43.7]} 5. dxe4 {[%clk
0:02:48]} 5... Bc5 {[%clk 0:02:30.8]} 6. Bc4 {[%clk 0:02:46.7]} 6... Qe7 {[%clk
0:02:23.9]} 7. Nc3 {[%clk 0:02:39.7]} 7... c6 {[%clk 0:02:12.9]} 8. O-O {[%clk
0:02:36.9]} 8... h6 {[%clk 0:02:12.1]} 9. Nf3 {[%clk 0:02:31.6]} 9... d6 {[%clk
0:02:11.7]} 10. Be3 {[%clk 0:02:28.5]} 10... Bxe3 {[%clk 0:01:54.6]} 11. fxe3
{[%clk 0:02:28.5]} 11... Be6 {[%clk 0:01:55.5]} 12. Bxe6 {[%clk 0:01:57]} 12...
Qxe6 {[%clk 0:01:56.4]} 13. Qd2 {[%clk 0:01:57.5]} 13... Na6 {[%clk 0:01:51.1]}
14. Rad1 {[%clk 0:01:56.8]} 14... Rd8 {[%clk 0:01:48.6]} 15. Nh4 {[%clk
0:01:56]} 15... O-O {[%clk 0:01:47.3]} 16. Nf5 {[%clk 0:01:53.2]} 16... Nc5
{[%clk 0:01:36.6]} 17. Ng3 {[%clk 0:01:49.1]} 17... a5 {[%clk 0:01:28.1]} 18. a4
{[%clk 0:01:39.8]} 18... b6 {[%clk 0:00:56.8]} 19. h3 {[%clk 0:01:34.9]} 19...
Kh7 {[%clk 0:00:55.7]} 20. Rf2 {[%clk 0:01:19.2]} 20... d5 {[%clk 0:00:46.1]}
21. exd5 {[%clk 0:01:18.9]} 21... cxd5 {[%clk 0:00:46.3]} 22. Rdf1 {[%clk
0:01:16.4]} 22... d4 {[%clk 0:00:42.2]} 23. exd4 {[%clk 0:01:14]} 23... Rxd4
{[%clk 0:00:39.9]} 24. Qe2 {[%clk 0:01:07.6]} 24... Nxa4 {[%clk 0:00:36.6]} 25.
Nxa4 {[%clk 0:01:02.1]} 25... Rxa4 {[%clk 0:00:37.5]} 26. b3 {[%clk 0:00:47.5]}
26... Rd4 {[%clk 0:00:36.2]} 27. c3 {[%clk 0:00:44.1]} 27... Rdd8 {[%clk
0:00:28.9]} 28. b4 {[%clk 0:00:43.2]} 28... axb4 {[%clk 0:00:26.6]} 29. cxb4
{[%clk 0:00:43.4]} 29... Rd4 {[%clk 0:00:22.7]} 30. Qc2+ {[%clk 0:00:35.7]}
30... Kh8 {[%clk 0:00:20.9]} 31. Nf5 {[%clk 0:00:32.3]} 31... Rc4 {[%clk
0:00:20.6]} 32. Qb2 {[%clk 0:00:28.8]} 32... e4 {[%clk 0:00:20.5]} 33. Nxh6
{[%clk 0:00:26.5]} 33... e3 {[%clk 0:00:16.5]} 34. Rxf6 {[%clk 0:00:18.5]} 34...
Rxf6 {[%clk 0:00:16]} 35. Rxf6 {[%clk 0:00:15.6]} 35... Qxf6 {[%clk 0:00:16.9]}
0-1

[Event "*** Titled Tuesday Blitz"]
[Site "Chess.com"]
[Date "2020.03.03"]
[Round "1"]
[White "Benjoneliere44"]
[Black "Rubinstein_Akiba"]
[Result "0-1"]
[WhiteElo "2628"]
[BlackElo "2359"]
[TimeControl "180+1"]
[EndTime "13:07:21 PST"]
[Termination "Rubinstein_Akiba won by resignation"]

1. d4 {[%clk 0:02:56.8]} 1... Nf6 {[%clk 0:02:59.1]} 2. Bf4 {[%clk 0:02:55.2]}
2... e6 {[%clk 0:02:57.8]} 3. e3 {[%clk 0:02:54.9]} 3... c5 {[%clk 0:02:57.9]}
4. c3 {[%clk 0:02:54.3]} 4... cxd4 {[%clk 0:02:58.5]} 5. exd4 {[%clk 0:02:42.1]}
5... Nc6 {[%clk 0:02:57.8]} 6. Bd3 {[%clk 0:02:40.8]} 6... d5 {[%clk 0:02:56]}
7. Nd2 {[%clk 0:02:39.2]} 7... Bd6 {[%clk 0:02:56.4]} 8. Bg3 {[%clk 0:02:36.4]}
8... O-O {[%clk 0:02:52.5]} 9. Ngf3 {[%clk 0:02:13.9]} 9... Qc7 {[%clk
0:02:51.3]} 10. Qe2 {[%clk 0:02:10.6]} 10... a6 {[%clk 0:02:39]} 11. O-O {[%clk
0:02:06.7]} 11... h6 {[%clk 0:02:31.3]} 12. Ne5 {[%clk 0:02:05.9]} 12... b5
{[%clk 0:02:14.6]} 13. a3 {[%clk 0:02:03.8]} 13... Bb7 {[%clk 0:02:12.7]} 14. f4
{[%clk 0:01:58.1]} 14... Ne7 {[%clk 0:02:08.7]} 15. f5 {[%clk 0:01:54.3]} 15...
exf5 {[%clk 0:02:08.3]} 16. Bxf5 {[%clk 0:01:54.9]} 16... Nxf5 {[%clk
0:02:08.3]} 17. Rxf5 {[%clk 0:01:55.8]} 17... Ne4 {[%clk 0:02:04]} 18. Nxe4
{[%clk 0:01:49.5]} 18... dxe4 {[%clk 0:02:04.9]} 19. Qg4 {[%clk 0:01:45.5]}
19... Bc8 {[%clk 0:01:58.3]} 20. Raf1 {[%clk 0:01:43.7]} 20... Bxf5 {[%clk
0:01:37.8]} 21. Rxf5 {[%clk 0:01:44.6]} 21... Rae8 {[%clk 0:01:35.5]} 22. Bf4
{[%clk 0:01:32.9]} 22... Kh7 {[%clk 0:01:29.7]} 23. h4 {[%clk 0:01:11.8]} 23...
e3 {[%clk 0:01:07.4]} 24. Bxe3 {[%clk 0:00:59.9]} 24... Bxe5 {[%clk 0:01:06.2]}
25. dxe5 {[%clk 0:00:59.5]} 25... Rxe5 {[%clk 0:00:59.1]} 26. Bd4 {[%clk
0:00:59.9]} 26... Rfe8 {[%clk 0:00:26.7]} 27. Bxe5 {[%clk 0:00:47.8]} 27... Rxe5
{[%clk 0:00:27.6]} 28. Qf4 {[%clk 0:00:46.4]} 28... Qc5+ {[%clk 0:00:21.2]} 29.
Kh2 {[%clk 0:00:35.8]} 29... Rxf5 {[%clk 0:00:21.1]} 30. Qg4 {[%clk 0:00:36.3]}
30... Qe5+ {[%clk 0:00:21.1]} 31. g3 {[%clk 0:00:36.2]} 31... Rf2+ {[%clk
0:00:20.5]} 32. Kh3 {[%clk 0:00:36.2]} 32... Qf6 {[%clk 0:00:20.4]} 33. Qd1
{[%clk 0:00:32.7]} 33... Rf5 {[%clk 0:00:19]} 34. Qd3 {[%clk 0:00:31.8]} 34...
Qg6 {[%clk 0:00:19.1]} 35. Qe4 {[%clk 0:00:25.5]} 35... Rf6 {[%clk 0:00:18.6]}
36. Qe5 {[%clk 0:00:24.9]} 36... Qc2 {[%clk 0:00:18.2]} 37. h5 {[%clk
0:00:23.8]} 37... Qb1 {[%clk 0:00:18.2]} 38. b3 {[%clk 0:00:20.2]} 38... Qh1+
{[%clk 0:00:16.9]} 39. Kg4 {[%clk 0:00:20.5]} 39... Qf3+ {[%clk 0:00:16.9]} 40.
Kh3 {[%clk 0:00:20.8]} 40... Rf5 {[%clk 0:00:15.9]} 0-1

[Event "*** Titled Tuesday Blitz"]
[Site "Chess.com"]
[Date "2020.03.03"]
[Round "1"]
[White "isla88"]
[Black "Witik"]
[Result "1-0"]
[WhiteElo "2326"]
[BlackElo "2638"]
[TimeControl "180+1"]
[EndTime "13:07:22 PST"]
[Termination "isla88 won on time"]

1. c4 {[%clk 0:03:00.9]} 1... f5 {[%clk 0:02:44.6]} 2. d4 {[%clk 0:02:59.7]}
2... Nf6 {[%clk 0:02:44.4]} 3. Nf3 {[%clk 0:03:00]} 3... g6 {[%clk 0:02:44.1]}
4. e3 {[%clk 0:02:59.8]} 4... Bg7 {[%clk 0:02:43.9]} 5. b4 {[%clk 0:02:57.8]}
5... O-O {[%clk 0:02:43.4]} 6. Bb2 {[%clk 0:02:58.1]} 6... e6 {[%clk 0:02:30]}
7. Qb3 {[%clk 0:02:57.9]} 7... Qe7 {[%clk 0:02:28]} 8. Nc3 {[%clk 0:02:58]} 8...
Nc6 {[%clk 0:02:19.3]} 9. Ba3 {[%clk 0:02:47.5]} 9... d6 {[%clk 0:02:16.9]} 10.
Rd1 {[%clk 0:02:44.6]} 10... Kh8 {[%clk 0:02:13.6]} 11. Be2 {[%clk 0:02:43.9]}
11... b6 {[%clk 0:01:31.7]} 12. Bb2 {[%clk 0:02:42.9]} 12... Bb7 {[%clk
0:01:24.3]} 13. O-O {[%clk 0:02:42.7]} 13... Nd8 {[%clk 0:01:17.1]} 14. Nd2
{[%clk 0:02:35.8]} 14... Nf7 {[%clk 0:01:12.3]} 15. Bf3 {[%clk 0:02:35.8]} 15...
c6 {[%clk 0:01:09.2]} 16. e4 {[%clk 0:02:30.6]} 16... e5 {[%clk 0:01:05.2]} 17.
dxe5 {[%clk 0:02:28.2]} 17... Nxe5 {[%clk 0:00:56.6]} 18. exf5 {[%clk
0:02:20.9]} 18... gxf5 {[%clk 0:00:52.5]} 19. Rfe1 {[%clk 0:02:09]} 19... Qf7
{[%clk 0:00:45.8]} 20. b5 {[%clk 0:01:34.2]} 20... Nxf3+ {[%clk 0:00:20.7]} 21.
Nxf3 {[%clk 0:01:34.1]} 21... c5 {[%clk 0:00:21.6]} 22. Rxd6 {[%clk 0:01:25.3]}
22... Ne4 {[%clk 0:00:17.1]} 23. Nxe4 {[%clk 0:01:07.2]} 23... fxe4 {[%clk
0:00:18]} 24. Bxg7+ {[%clk 0:01:07.1]} 24... Qxg7 {[%clk 0:00:18.5]} 25. Nh4
{[%clk 0:00:48.9]} 25... Rf4 {[%clk 0:00:15.4]} 26. Qh3 {[%clk 0:00:30.1]} 26...
Rg4 {[%clk 0:00:08.6]} 27. Nf5 {[%clk 0:00:28.1]} 27... Qg5 {[%clk 0:00:08.7]}
28. Rd7 {[%clk 0:00:24.1]} 28... Qxf5 {[%clk 0:00:06.4]} 29. Rxb7 {[%clk
0:00:24.1]} 29... Rag8 {[%clk 0:00:06.3]} 30. g3 {[%clk 0:00:22]} 30... e3
{[%clk 0:00:06.7]} 31. Rxe3 {[%clk 0:00:20.3]} 31... Qb1+ {[%clk 0:00:06.8]} 32.
Kg2 {[%clk 0:00:20.7]} 32... Rxc4 {[%clk 0:00:05.7]} 33. Ree7 {[%clk 0:00:18.4]}
1-0